[Event "Titled Tuesday Blitz April 19 Late 2022"]
[White "Koc, Przemyslaw"]
[Black "Koziorowicz, Michal"]
[WhiteFideId "1109081"]
[BlackFideId "21809194"]
[WhiteElo "2141"]
[BlackElo "2235"]
[Result "0-1"]
[Round "05"]
[TimeControl "180+1"]
[Date "2022.04.19"]
[WhiteClock "0:00:01"]
[BlackClock "0:01:40"]

1. d4 {[%clk 0:03:00]}  Na6 {[%clk 0:02:59]} 2. e4 {[%clk 0:03:00]}  c6 {[%clk 0:02:57]} 3. c4 {[%clk 0:02:57]}  e5 {[%clk 0:02:57]} 4. Nf3 {[%clk 0:02:54]}  exd4 {[%clk 0:02:57]} 5. Nxd4 {[%clk 0:02:54]}  Nf6 {[%clk 0:02:56]} 6. Nc3 {[%clk 0:02:54]}  Bb4 {[%clk 0:02:52]} 7. Bd3 {[%clk 0:02:53]}  O-O {[%clk 0:02:52]} 8. O-O {[%clk 0:02:52]}  Re8 {[%clk 0:02:52]} 9. Re1 {[%clk 0:02:47]}  Nc5 {[%clk 0:02:52]} 10. f3 {[%clk 0:02:32]}  d5 {[%clk 0:02:38]} 11. cxd5 {[%clk 0:02:32]}  Nxd5 {[%clk 0:02:28]} 12. exd5 {[%clk 0:01:39]}  Rxe1+ {[%clk 0:02:29]} 13. Qxe1 {[%clk 0:01:39]}  Nxd3 {[%clk 0:02:30]} 14. Qe3 {[%clk 0:01:23]}  Nxc1 {[%clk 0:02:27]} 15. Rxc1 {[%clk 0:01:22]}  cxd5 {[%clk 0:02:27]} 16. Nxd5 {[%clk 0:01:15]}  Qxd5 {[%clk 0:02:26]} 17. Qe8+ {[%clk 0:01:12]}  Bf8 {[%clk 0:02:26]} 18. Nb5 {[%clk 0:00:55]}  Qe6 {[%clk 0:02:20]} 19. Qxe6 {[%clk 0:00:38]}  Bxe6 {[%clk 0:02:20]} 20. Rc7 {[%clk 0:00:37]}  a6 {[%clk 0:02:20]} 21. Nc3 {[%clk 0:00:36]}  b5 {[%clk 0:02:19]} 22. a3 {[%clk 0:00:35]}  b4 {[%clk 0:02:16]} 23. axb4 {[%clk 0:00:34]}  Bxb4 {[%clk 0:02:17]} 24. g4 {[%clk 0:00:33]}  Bxc3 {[%clk 0:02:16]} 25. Rxc3 {[%clk 0:00:33]}  h6 {[%clk 0:02:16]} 26. Kg2 {[%clk 0:00:33]}  Rb8 {[%clk 0:02:16]} 27. Kg3 {[%clk 0:00:34]}  Rxb2 {[%clk 0:02:16]} 28. h4 {[%clk 0:00:34]}  g6 {[%clk 0:02:15]} 29. Kf4 {[%clk 0:00:33]}  Kg7 {[%clk 0:02:15]} 30. g5 {[%clk 0:00:33]}  Rb4+ {[%clk 0:02:15]} 31. Kg3 {[%clk 0:00:33]}  hxg5 {[%clk 0:02:14]} 32. hxg5 {[%clk 0:00:32]}  a5 {[%clk 0:02:15]} 33. Rc5 {[%clk 0:00:31]}  a4 {[%clk 0:02:15]} 34. Ra5 {[%clk 0:00:32]}  Bb3 {[%clk 0:02:15]} 35. f4 {[%clk 0:00:30]}  Rc4 {[%clk 0:02:12]} 36. Kg4 {[%clk 0:00:29]}  Bd1+ {[%clk 0:02:12]} 37. Kg3 {[%clk 0:00:30]}  Rc3+ {[%clk 0:02:12]} 38. Kf2 {[%clk 0:00:30]}  Rc1 {[%clk 0:02:12]} 39. Ke3 {[%clk 0:00:30]}  Ra1 {[%clk 0:02:11]} 40. Kd2 {[%clk 0:00:22]}  Bb3 {[%clk 0:02:09]} 41. Kc3 {[%clk 0:00:22]}  Be6 {[%clk 0:02:10]} 42. Kb2 {[%clk 0:00:20]}  a3+ {[%clk 0:02:10]} 43. Kxa1 {[%clk 0:00:20]}  a2 {[%clk 0:02:11]} 44. Kb2 {[%clk 0:00:19]}  Kf8 {[%clk 0:02:10]} 45. Kc3 {[%clk 0:00:20]}  Ke7 {[%clk 0:02:09]} 46. Kd4 {[%clk 0:00:20]}  Kd7 {[%clk 0:02:09]} 47. Ke5 {[%clk 0:00:21]}  Kc6 {[%clk 0:02:07]} 48. Kd4 {[%clk 0:00:20]}  Kb6 {[%clk 0:02:07]} 49. Ra8 {[%clk 0:00:21]}  Kb5 {[%clk 0:01:45]} 50. Ra7 {[%clk 0:00:15]}  Kb4 {[%clk 0:01:42]} 51. Ra8 {[%clk 0:00:06]}  Bb3 {[%clk 0:01:40]} 52. Kd3 {[%clk 0:00:02]}  Ba4 {[%clk 0:01:40]} 53. Rb8+ {[%clk 0:00:01]}  Ka3 {[%clk 0:01:40]} 0-1


[Site "https://www.chess.com"]

[Event "Titled Tuesday Blitz April 19 Late 2022"]
[White "Kohler, Aran"]
[Black "Piliczewski, Bogusz"]
[WhiteFideId "1002856"]
[BlackFideId "1104144"]
[WhiteElo "2297"]
[BlackElo "1896"]
[Result "0-1"]
[Round "05"]
[TimeControl "180+1"]
[Date "2022.04.19"]
[WhiteClock "0:00:03"]
[BlackClock "0:00:05"]

1. d4 {[%clk 0:02:59]}  d5 {[%clk 0:02:58]} 2. Nf3 {[%clk 0:02:58]}  Nf6 {[%clk 0:02:57]} 3. Bg5 {[%clk 0:02:58]}  Ne4 {[%clk 0:02:56]} 4. Bf4 {[%clk 0:02:57]}  c6 {[%clk 0:02:56]} 5. c3 {[%clk 0:02:57]}  Bf5 {[%clk 0:02:56]} 6. e3 {[%clk 0:02:56]}  e6 {[%clk 0:02:56]} 7. Nbd2 {[%clk 0:02:56]}  Bd6 {[%clk 0:02:54]} 8. Bxd6 {[%clk 0:02:50]}  Nxd6 {[%clk 0:02:53]} 9. Be2 {[%clk 0:02:43]}  Qb6 {[%clk 0:02:49]} 10. b4 {[%clk 0:02:42]}  a5 {[%clk 0:02:47]} 11. a3 {[%clk 0:02:38]}  Nd7 {[%clk 0:02:35]} 12. O-O {[%clk 0:02:36]}  O-O {[%clk 0:02:33]} 13. Nh4 {[%clk 0:02:36]}  Be4 {[%clk 0:02:25]} 14. Nxe4 {[%clk 0:02:35]}  Nxe4 {[%clk 0:02:24]} 15. Qc2 {[%clk 0:02:11]}  f5 {[%clk 0:02:23]} 16. Nf3 {[%clk 0:02:02]}  axb4 {[%clk 0:02:15]} 17. axb4 {[%clk 0:01:59]}  Qc7 {[%clk 0:02:09]} 18. Nd2 {[%clk 0:01:58]}  Ndf6 {[%clk 0:02:04]} 19. f3 {[%clk 0:01:53]}  Nd6 {[%clk 0:02:02]} 20. Qb2 {[%clk 0:01:47]}  b5 {[%clk 0:01:59]} 21. Nb3 {[%clk 0:01:45]}  Nc4 {[%clk 0:01:57]} 22. Bxc4 {[%clk 0:01:44]}  dxc4 {[%clk 0:01:52]} 23. Nc5 {[%clk 0:01:45]}  Qd6 {[%clk 0:01:42]} 24. e4 {[%clk 0:01:30]}  e5 {[%clk 0:01:31]} 25. Rad1 {[%clk 0:01:12]}  exd4 {[%clk 0:01:15]} 26. Rxd4 {[%clk 0:01:11]}  Qe5 {[%clk 0:01:09]} 27. f4 {[%clk 0:01:05]}  Qe7 {[%clk 0:01:03]} 28. e5 {[%clk 0:01:06]}  Nd5 {[%clk 0:01:02]} 29. Ra1 {[%clk 0:00:51]}  Ra7 {[%clk 0:00:56]} 30. Rxa7 {[%clk 0:00:48]}  Qxa7 {[%clk 0:00:55]} 31. Kf2 {[%clk 0:00:39]}  Ra8 {[%clk 0:00:49]} 32. Rxd5 {[%clk 0:00:19]}  cxd5 {[%clk 0:00:46]} 33. Qd2 {[%clk 0:00:18]}  Qa2 {[%clk 0:00:41]} 34. Ke3 {[%clk 0:00:18]}  Qxd2+ {[%clk 0:00:40]} 35. Kxd2 {[%clk 0:00:19]}  Ra2+ {[%clk 0:00:36]} 36. Ke3 {[%clk 0:00:19]}  Rxg2 {[%clk 0:00:35]} 37. e6 {[%clk 0:00:17]}  Kf8 {[%clk 0:00:36]} 38. Kd4 {[%clk 0:00:16]}  Rd2+ {[%clk 0:00:33]} 39. Ke5 {[%clk 0:00:16]}  Ke7 {[%clk 0:00:32]} 40. Kxf5 {[%clk 0:00:17]}  g6+ {[%clk 0:00:30]} 41. Ke5 {[%clk 0:00:16]}  Re2+ {[%clk 0:00:29]} 42. Kxd5 {[%clk 0:00:16]}  Rxh2 {[%clk 0:00:27]} 43. Kc6 {[%clk 0:00:15]}  Rc2 {[%clk 0:00:24]} 44. Kxb5 {[%clk 0:00:15]}  Rxc3 {[%clk 0:00:24]} 45. Kc6 {[%clk 0:00:15]}  Re3 {[%clk 0:00:22]} 46. b5 {[%clk 0:00:15]}  c3 {[%clk 0:00:21]} 47. b6 {[%clk 0:00:11]}  c2 {[%clk 0:00:21]} 48. b7 {[%clk 0:00:11]}  c1=Q {[%clk 0:00:18]} 49. b8=Q {[%clk 0:00:12]}  Rxe6+ {[%clk 0:00:18]} 50. Kd5 {[%clk 0:00:09]}  Qd2+ {[%clk 0:00:15]} 51. Kc4 {[%clk 0:00:09]}  Qc2+ {[%clk 0:00:15]} 52. Kd5 {[%clk 0:00:09]}  Qd1+ {[%clk 0:00:11]} 53. Kc4 {[%clk 0:00:08]}  Qe2+ {[%clk 0:00:10]} 54. Kd5 {[%clk 0:00:07]}  Qf3+ {[%clk 0:00:09]} 55. Kc4 {[%clk 0:00:07]}  Qxf4+ {[%clk 0:00:09]} 56. Kb5 {[%clk 0:00:06]}  Qf1+ {[%clk 0:00:08]} 57. Ka5 {[%clk 0:00:02]}  Qa1+ {[%clk 0:00:08]} 58. Na4 {[%clk 0:00:03]}  Qe1+ {[%clk 0:00:06]} 59. Kb5 {[%clk 0:00:02]}  Qb1+ {[%clk 0:00:05]} 60. Kc4 {[%clk 0:00:02]}  Qxb8 {[%clk 0:00:04]} 61. Nc5 {[%clk 0:00:03]}  Rc6 {[%clk 0:00:04]} 62. Kd5 {[%clk 0:00:03]}  Rxc5+ {[%clk 0:00:04]} 63. Kxc5 {[%clk 0:00:03]}  Qb7 {[%clk 0:00:04]} 64. Kd4 {[%clk 0:00:04]}  Qb5 {[%clk 0:00:04]} 65. Ke3 {[%clk 0:00:05]}  Ke6 {[%clk 0:00:05]} 66. Kf4 {[%clk 0:00:05]}  Qb4+ {[%clk 0:00:05]} 67. Kg5 {[%clk 0:00:05]}  Kf7 {[%clk 0:00:05]} 68. Kh6 {[%clk 0:00:06]}  Kf6 {[%clk 0:00:05]} 69. Kxh7 {[%clk 0:00:05]}  Qb7+ {[%clk 0:00:05]} 70. Kh6 {[%clk 0:00:03]}  Qh1# {[%clk 0:00:05]} 0-1


[Site "https://www.chess.com"]

[Event "Titled Tuesday Blitz April 19 Late 2022"]
[White "Kostiukov, Alexandr"]
[Black "Mirza, Diana"]
[WhiteFideId "14108100"]
[BlackFideId "2503999"]
[WhiteElo "2202"]
[BlackElo "1813"]
[Result "1-0"]
[Round "05"]
[TimeControl "180+1"]
[Date "2022.04.19"]
[WhiteClock "0:01:53"]
[BlackClock "0:02:01"]

1. g3 {[%clk 0:03:00]}  d5 {[%clk 0:02:55]} 2. Bg2 {[%clk 0:03:00]}  c5 {[%clk 0:02:54]} 3. d3 {[%clk 0:02:56]}  Nc6 {[%clk 0:02:53]} 4. e4 {[%clk 0:02:57]}  d4 {[%clk 0:02:52]} 5. f4 {[%clk 0:02:56]}  g6 {[%clk 0:02:52]} 6. Nf3 {[%clk 0:02:57]}  Bg7 {[%clk 0:02:53]} 7. O-O {[%clk 0:02:58]}  e5 {[%clk 0:02:52]} 8. a4 {[%clk 0:02:59]}  Nge7 {[%clk 0:02:51]} 9. Na3 {[%clk 0:02:58]}  O-O {[%clk 0:02:51]} 10. Nc4 {[%clk 0:02:58]}  Qc7 {[%clk 0:02:42]} 11. fxe5 {[%clk 0:02:18]}  Nxe5 {[%clk 0:02:37]} 12. Nfxe5 {[%clk 0:02:18]}  Bxe5 {[%clk 0:02:36]} 13. Nxe5 {[%clk 0:02:18]}  Qxe5 {[%clk 0:02:37]} 14. Bh6 {[%clk 0:02:11]}  Re8 {[%clk 0:02:34]} 15. Qf3 {[%clk 0:02:11]}  f5 {[%clk 0:02:31]} 16. Rae1 {[%clk 0:02:06]}  Be6 {[%clk 0:02:20]} 17. exf5 {[%clk 0:02:03]}  Qxf5 {[%clk 0:02:20]} 18. Qe2 {[%clk 0:01:57]}  Qh5 {[%clk 0:02:02]} 19. Qxe6+ {[%clk 0:01:53]}  Kh8 {[%clk 0:02:01]} 20. Qf6+ {[%clk 0:01:53]} 1-0


[Site "https://www.chess.com"]

[Event "Titled Tuesday Blitz April 19 Late 2022"]
[White "Krishnakumar, Sriram"]
[Black "Vlassov, Nikolai"]
[WhiteFideId "30915856"]
[BlackFideId "4103360"]
[WhiteElo "2436"]
[BlackElo "2407"]
[Result "0-1"]
[Round "05"]
[TimeControl "180+1"]
[Date "2022.04.19"]
[WhiteClock "0:00:30"]
[BlackClock "0:00:58"]

1. e4 {[%clk 0:03:00]}  Nc6 {[%clk 0:02:59]} 2. d4 {[%clk 0:03:00]}  d5 {[%clk 0:02:59]} 3. Nc3 {[%clk 0:03:00]}  e5 {[%clk 0:02:59]} 4. exd5 {[%clk 0:02:46]}  Nxd4 {[%clk 0:02:58]} 5. Nf3 {[%clk 0:02:45]}  Bg4 {[%clk 0:02:54]} 6. Be2 {[%clk 0:02:41]}  Nxe2 {[%clk 0:02:53]} 7. Qxe2 {[%clk 0:02:42]}  Bd6 {[%clk 0:02:52]} 8. h3 {[%clk 0:02:40]}  Bxf3 {[%clk 0:02:47]} 9. Qxf3 {[%clk 0:02:41]}  Ne7 {[%clk 0:02:47]} 10. O-O {[%clk 0:02:32]}  O-O {[%clk 0:02:47]} 11. Re1 {[%clk 0:02:27]}  Qd7 {[%clk 0:02:46]} 12. Be3 {[%clk 0:02:22]}  f5 {[%clk 0:02:44]} 13. Rad1 {[%clk 0:02:22]}  e4 {[%clk 0:02:38]} 14. Qh5 {[%clk 0:01:50]}  Rf6 {[%clk 0:02:32]} 15. Bg5 {[%clk 0:01:23]}  Rg6 {[%clk 0:02:32]} 16. Bxe7 {[%clk 0:01:11]}  Bxe7 {[%clk 0:02:30]} 17. Qe2 {[%clk 0:00:55]}  Rf8 {[%clk 0:02:26]} 18. f3 {[%clk 0:00:52]}  Bc5+ {[%clk 0:02:03]} 19. Kh1 {[%clk 0:00:51]}  exf3 {[%clk 0:02:01]} 20. Qxf3 {[%clk 0:00:50]}  a6 {[%clk 0:01:44]} 21. Re5 {[%clk 0:00:46]}  Bd6 {[%clk 0:01:42]} 22. Re2 {[%clk 0:00:39]}  b5 {[%clk 0:01:38]} 23. Rde1 {[%clk 0:00:32]}  b4 {[%clk 0:01:37]} 24. Nd1 {[%clk 0:00:32]}  f4 {[%clk 0:01:31]} 25. Nf2 {[%clk 0:00:27]}  Rg3 {[%clk 0:01:31]} 26. Qe4 {[%clk 0:00:26]}  f3 {[%clk 0:01:28]} 27. Qe6+ {[%clk 0:00:19]}  Qxe6 {[%clk 0:01:27]} 28. Rxe6 {[%clk 0:00:20]}  fxg2+ {[%clk 0:01:25]} 29. Kg1 {[%clk 0:00:21]}  Bc5 {[%clk 0:01:22]} 30. R1e2 {[%clk 0:00:20]}  Rgf3 {[%clk 0:01:09]} 31. Kxg2 {[%clk 0:00:19]}  Rxf2+ {[%clk 0:01:09]} 32. Rxf2 {[%clk 0:00:19]}  Rxf2+ {[%clk 0:01:09]} 33. Kg3 {[%clk 0:00:20]}  Rxc2 {[%clk 0:01:09]} 34. Rc6 {[%clk 0:00:19]}  Bd6+ {[%clk 0:01:09]} 35. Kf3 {[%clk 0:00:18]}  Rxc6 {[%clk 0:01:07]} 36. dxc6 {[%clk 0:00:19]}  Kf7 {[%clk 0:01:07]} 37. Ke4 {[%clk 0:00:20]}  Ke6 {[%clk 0:01:08]} 38. Kd4 {[%clk 0:00:20]}  g5 {[%clk 0:01:08]} 39. a4 {[%clk 0:00:20]}  bxa3 {[%clk 0:01:07]} 40. bxa3 {[%clk 0:00:21]}  Bxa3 {[%clk 0:01:07]} 41. Kc4 {[%clk 0:00:22]}  Kd6 {[%clk 0:01:07]} 42. Kb3 {[%clk 0:00:22]}  Bc5 {[%clk 0:01:07]} 43. Ka4 {[%clk 0:00:23]}  Kxc6 {[%clk 0:01:07]} 44. Ka5 {[%clk 0:00:24]}  h5 {[%clk 0:01:07]} 45. Ka4 {[%clk 0:00:25]}  g4 {[%clk 0:01:07]} 46. Kb3 {[%clk 0:00:26]}  gxh3 {[%clk 0:01:08]} 47. Kc4 {[%clk 0:00:26]}  h2 {[%clk 0:01:08]} 48. Kb3 {[%clk 0:00:27]}  h1=Q {[%clk 0:01:08]} 49. Kc4 {[%clk 0:00:28]}  h4 {[%clk 0:01:04]} 50. Kd3 {[%clk 0:00:29]}  h3 {[%clk 0:01:04]} 51. Ke2 {[%clk 0:00:29]}  h2 {[%clk 0:01:04]} 52. Kd2 {[%clk 0:00:29]}  Qg2+ {[%clk 0:01:04]} 53. Kd3 {[%clk 0:00:30]}  h1=Q {[%clk 0:01:03]} 54. Kc4 {[%clk 0:00:31]}  Qe4+ {[%clk 0:00:58]} 55. Kc3 {[%clk 0:00:30]}  Qc1+ {[%clk 0:00:58]} 56. Kb3 {[%clk 0:00:30]}  Qec4# {[%clk 0:00:58]} 0-1


[Site "https://www.chess.com"]

[Event "Titled Tuesday Blitz April 19 Late 2022"]
[White "Lopez Del Alamo, Antonio"]
[Black "Isajevsky, Anton"]
[WhiteFideId "2227339"]
[BlackFideId "4142500"]
[WhiteElo "2082"]
[BlackElo "2510"]
[Result "0-1"]
[Round "05"]
[TimeControl "180+1"]
[Date "2022.04.19"]
[WhiteClock "0:00:03"]
[BlackClock "0:00:11"]

1. e4 {[%clk 0:03:00]}  g6 {[%clk 0:02:59]} 2. d4 {[%clk 0:02:56]}  Bg7 {[%clk 0:03:00]} 3. Nc3 {[%clk 0:02:56]}  a6 {[%clk 0:02:58]} 4. f4 {[%clk 0:02:55]}  b5 {[%clk 0:02:58]} 5. a3 {[%clk 0:02:55]}  Bb7 {[%clk 0:02:57]} 6. Nf3 {[%clk 0:02:56]}  d6 {[%clk 0:02:56]} 7. Bd3 {[%clk 0:02:55]}  Nd7 {[%clk 0:02:55]} 8. e5 {[%clk 0:02:53]}  e6 {[%clk 0:02:25]} 9. Ne4 {[%clk 0:02:48]}  Nb6 {[%clk 0:02:11]} 10. Qe2 {[%clk 0:02:35]}  Ne7 {[%clk 0:02:10]} 11. Bd2 {[%clk 0:02:21]}  Qd7 {[%clk 0:01:22]} 12. Bb4 {[%clk 0:02:07]}  Ned5 {[%clk 0:01:18]} 13. exd6 {[%clk 0:01:51]}  Nxb4 {[%clk 0:01:18]} 14. axb4 {[%clk 0:01:52]}  cxd6 {[%clk 0:01:17]} 15. c3 {[%clk 0:01:49]}  O-O {[%clk 0:01:15]} 16. O-O {[%clk 0:01:48]}  Nd5 {[%clk 0:01:04]} 17. g3 {[%clk 0:01:46]}  h6 {[%clk 0:01:03]} 18. Ra5 {[%clk 0:01:41]}  Qc6 {[%clk 0:00:48]} 19. Ned2 {[%clk 0:01:29]}  Rae8 {[%clk 0:00:47]} 20. Raa1 {[%clk 0:01:18]}  Qb6 {[%clk 0:00:32]} 21. Nb3 {[%clk 0:01:16]}  Ba8 {[%clk 0:00:22]} 22. Ra3 {[%clk 0:01:12]}  e5 {[%clk 0:00:22]} 23. fxe5 {[%clk 0:01:10]}  dxe5 {[%clk 0:00:22]} 24. Rfa1 {[%clk 0:01:08]}  e4 {[%clk 0:00:19]} 25. Bxe4 {[%clk 0:01:03]}  Nxc3 {[%clk 0:00:18]} 26. bxc3 {[%clk 0:01:01]}  Bxe4 {[%clk 0:00:13]} 27. Nc5 {[%clk 0:00:59]}  Bd5 {[%clk 0:00:11]} 28. Qf2 {[%clk 0:00:55]}  Qf6 {[%clk 0:00:11]} 29. Rf1 {[%clk 0:00:54]}  Qf5 {[%clk 0:00:11]} 30. Rxa6 {[%clk 0:00:53]}  Re7 {[%clk 0:00:10]} 31. Rd6 {[%clk 0:00:44]}  Bc4 {[%clk 0:00:11]} 32. Re1 {[%clk 0:00:39]}  Rfe8 {[%clk 0:00:10]} 33. Rxe7 {[%clk 0:00:25]}  Rxe7 {[%clk 0:00:11]} 34. Nd2 {[%clk 0:00:24]}  Qg4 {[%clk 0:00:11]} 35. Nde4 {[%clk 0:00:15]}  Rxe4 {[%clk 0:00:11]} 36. Nxe4 {[%clk 0:00:11]}  Qxe4 {[%clk 0:00:12]} 37. Rd8+ {[%clk 0:00:09]}  Kh7 {[%clk 0:00:12]} 38. h4 {[%clk 0:00:06]}  Qb1+ {[%clk 0:00:11]} 39. Kg2 {[%clk 0:00:05]}  Qc1 {[%clk 0:00:11]} 40. Qe3 {[%clk 0:00:03]}  Qxe3 {[%clk 0:00:11]} 0-1


[Site "https://www.chess.com"]

[Event "Titled Tuesday Blitz April 19 Late 2022"]
[White "Maevsky, Nikolay"]
[Black "Jaskolka, Tomasz"]
[WhiteFideId "4198220"]
[BlackFideId "1170791"]
[WhiteElo "2126"]
[BlackElo "2073"]
[Result "1-0"]
[Round "05"]
[TimeControl "180+1"]
[Date "2022.04.19"]
[WhiteClock "0:00:10"]
[BlackClock "0:00:05"]

1. d4 {[%clk 0:03:00]}  Nf6 {[%clk 0:02:53]} 2. Nf3 {[%clk 0:03:00]}  e6 {[%clk 0:02:53]} 3. e3 {[%clk 0:03:00]}  b6 {[%clk 0:02:50]} 4. Bd3 {[%clk 0:03:01]}  Bb7 {[%clk 0:02:50]} 5. O-O {[%clk 0:03:02]}  d6 {[%clk 0:02:51]} 6. c4 {[%clk 0:03:00]}  Nbd7 {[%clk 0:02:51]} 7. b3 {[%clk 0:02:57]}  Be7 {[%clk 0:02:52]} 8. Bb2 {[%clk 0:02:57]}  O-O {[%clk 0:02:52]} 9. Nc3 {[%clk 0:02:56]}  a6 {[%clk 0:02:51]} 10. Re1 {[%clk 0:02:55]}  e5 {[%clk 0:02:47]} 11. d5 {[%clk 0:02:53]}  g6 {[%clk 0:02:43]} 12. Bc2 {[%clk 0:02:51]}  Re8 {[%clk 0:02:42]} 13. e4 {[%clk 0:02:37]}  Nh5 {[%clk 0:02:38]} 14. g3 {[%clk 0:02:35]}  Bf8 {[%clk 0:02:35]} 15. b4 {[%clk 0:02:33]}  a5 {[%clk 0:02:34]} 16. a3 {[%clk 0:02:33]}  Bh6 {[%clk 0:02:19]} 17. Nb5 {[%clk 0:02:20]}  Ba6 {[%clk 0:02:15]} 18. Bd3 {[%clk 0:02:12]}  Qc8 {[%clk 0:01:50]} 19. Nc3 {[%clk 0:02:04]}  Bb7 {[%clk 0:01:45]} 20. Nh4 {[%clk 0:01:53]}  Qd8 {[%clk 0:01:37]} 21. Nf5 {[%clk 0:01:46]}  Bf8 {[%clk 0:01:34]} 22. Ne3 {[%clk 0:01:44]}  Qg5 {[%clk 0:01:29]} 23. Ng2 {[%clk 0:01:42]}  Bg7 {[%clk 0:01:26]} 24. Bc1 {[%clk 0:01:42]}  Qe7 {[%clk 0:01:25]} 25. Be3 {[%clk 0:01:41]}  Nf4 {[%clk 0:01:15]} 26. gxf4 {[%clk 0:01:25]}  exf4 {[%clk 0:01:16]} 27. Bd2 {[%clk 0:01:26]}  Ne5 {[%clk 0:01:08]} 28. Be2 {[%clk 0:01:12]}  g5 {[%clk 0:00:52]} 29. bxa5 {[%clk 0:01:05]}  Qf6 {[%clk 0:00:42]} 30. f3 {[%clk 0:01:03]}  Nxc4 {[%clk 0:00:38]} 31. Bxc4 {[%clk 0:00:58]}  Qd4+ {[%clk 0:00:39]} 32. Kh1 {[%clk 0:00:55]}  Qxc4 {[%clk 0:00:39]} 33. Rc1 {[%clk 0:00:44]}  g4 {[%clk 0:00:19]} 34. Nxf4 {[%clk 0:00:39]}  gxf3 {[%clk 0:00:17]} 35. Qxf3 {[%clk 0:00:38]}  f5 {[%clk 0:00:13]} 36. Ne6 {[%clk 0:00:32]}  fxe4 {[%clk 0:00:11]} 37. Qg4 {[%clk 0:00:30]}  Re7 {[%clk 0:00:09]} 38. Bh6 {[%clk 0:00:25]}  Bxd5 {[%clk 0:00:08]} 39. Nxd5 {[%clk 0:00:22]}  Qxd5 {[%clk 0:00:07]} 40. Nxg7 {[%clk 0:00:21]}  e3+ {[%clk 0:00:07]} 41. Kg1 {[%clk 0:00:21]}  Kh8 {[%clk 0:00:07]} 42. Rcd1 {[%clk 0:00:19]}  Qf7 {[%clk 0:00:06]} 43. Rf1 {[%clk 0:00:17]}  e2 {[%clk 0:00:03]} 44. Qxe2 {[%clk 0:00:14]}  Qg6+ {[%clk 0:00:02]} 45. Qg2 {[%clk 0:00:14]}  Qxh6 {[%clk 0:00:03]} 46. Nf5 {[%clk 0:00:14]}  Qf6 {[%clk 0:00:03]} 47. Nxe7 {[%clk 0:00:14]}  Qxe7 {[%clk 0:00:03]} 48. Kh1 {[%clk 0:00:14]}  Rg8 {[%clk 0:00:03]} 49. Qb2+ {[%clk 0:00:14]}  Rg7 {[%clk 0:00:03]} 50. Qd4 {[%clk 0:00:12]}  c5 {[%clk 0:00:03]} 51. Qd5 {[%clk 0:00:11]}  h6 {[%clk 0:00:03]} 52. Rg1 {[%clk 0:00:10]}  Kh7 {[%clk 0:00:03]} 53. Rxg7+ {[%clk 0:00:10]}  Qxg7 {[%clk 0:00:04]} 54. Qe4+ {[%clk 0:00:10]}  Kh8 {[%clk 0:00:04]} 55. Rg1 {[%clk 0:00:10]}  Qc3 {[%clk 0:00:04]} 56. Qe8+ {[%clk 0:00:09]}  Kh7 {[%clk 0:00:05]} 57. Qg8# {[%clk 0:00:10]} 1-0


[Site "https://www.chess.com"]

[Event "Titled Tuesday Blitz April 19 Late 2022"]
[White "Martic, Ivan"]
[Black "Kamsky, Gata"]
[WhiteFideId "929301"]
[BlackFideId "2000024"]
[WhiteElo "2317"]
[BlackElo "2645"]
[Result "0-1"]
[Round "05"]
[TimeControl "180+1"]
[Date "2022.04.19"]
[WhiteClock "0:00:05"]
[BlackClock "0:00:19"]

1. c4 {[%clk 0:03:00]}  e5 {[%clk 0:02:56]} 2. Nc3 {[%clk 0:03:00]}  Nc6 {[%clk 0:02:55]} 3. g3 {[%clk 0:02:59]}  Bc5 {[%clk 0:02:53]} 4. Bg2 {[%clk 0:02:59]}  d6 {[%clk 0:02:53]} 5. d3 {[%clk 0:02:54]}  a6 {[%clk 0:02:52]} 6. e3 {[%clk 0:02:47]}  h5 {[%clk 0:02:48]} 7. h4 {[%clk 0:02:43]}  Nf6 {[%clk 0:02:45]} 8. a3 {[%clk 0:02:43]}  Ba7 {[%clk 0:02:44]} 9. b4 {[%clk 0:02:42]}  Ng4 {[%clk 0:02:32]} 10. Nd5 {[%clk 0:02:39]}  Ne7 {[%clk 0:02:30]} 11. Qe2 {[%clk 0:02:28]}  Nxd5 {[%clk 0:02:27]} 12. cxd5 {[%clk 0:02:29]}  O-O {[%clk 0:02:15]} 13. Nh3 {[%clk 0:02:14]}  f6 {[%clk 0:02:01]} 14. Bb2 {[%clk 0:02:06]}  Bd7 {[%clk 0:01:59]} 15. Rc1 {[%clk 0:02:04]}  Rc8 {[%clk 0:01:57]} 16. O-O {[%clk 0:02:02]}  Bf5 {[%clk 0:01:42]} 17. d4 {[%clk 0:01:58]}  Qd7 {[%clk 0:01:34]} 18. dxe5 {[%clk 0:01:53]}  dxe5 {[%clk 0:01:28]} 19. e4 {[%clk 0:01:36]}  Bg6 {[%clk 0:01:27]} 20. Kh1 {[%clk 0:01:29]}  Kh8 {[%clk 0:01:24]} 21. Ng1 {[%clk 0:01:27]}  c6 {[%clk 0:01:17]} 22. Bh3 {[%clk 0:01:09]}  f5 {[%clk 0:00:48]} 23. exf5 {[%clk 0:00:48]}  Bxf5 {[%clk 0:00:46]} 24. Bxg4 {[%clk 0:00:41]}  Bxg4 {[%clk 0:00:46]} 25. Qxe5 {[%clk 0:00:39]}  Qxd5+ {[%clk 0:00:41]} 26. Qxd5 {[%clk 0:00:35]}  cxd5 {[%clk 0:00:41]} 27. f3 {[%clk 0:00:29]}  Bf5 {[%clk 0:00:35]} 28. Kg2 {[%clk 0:00:25]}  Bd3 {[%clk 0:00:31]} 29. Rfd1 {[%clk 0:00:22]}  Rxc1 {[%clk 0:00:30]} 30. Bxc1 {[%clk 0:00:17]}  Bc4 {[%clk 0:00:31]} 31. Re1 {[%clk 0:00:13]}  Kg8 {[%clk 0:00:26]} 32. Nh3 {[%clk 0:00:13]}  d4 {[%clk 0:00:24]} 33. Ng5 {[%clk 0:00:12]}  Bd5 {[%clk 0:00:23]} 34. Bb2 {[%clk 0:00:11]}  Rc8 {[%clk 0:00:21]} 35. Re7 {[%clk 0:00:10]}  Kf8 {[%clk 0:00:20]} 36. Rd7 {[%clk 0:00:09]}  Rc2+ {[%clk 0:00:20]} 37. Kh3 {[%clk 0:00:09]}  Bc4 {[%clk 0:00:20]} 38. Rxb7 {[%clk 0:00:05]}  Bf1# {[%clk 0:00:19]} 0-1


[Site "https://www.chess.com"]